[Event "1st Archibald 2019"]
[Site "Sochi"]
[Date "2019.05.12"]
[Round "1.16"]
[White "Kazimov, Farhan"]
[Black "Raja Harshit"]
[Result "0-1"]
[ECO "B92"]
[WhiteElo "2146"]
[BlackElo "2446"]
[Annotator "ChessBase"]
[PlyCount "106"]
[EventDate "2019.05.12"]
[EventType "swiss"]
[EventCountry "RUS"]
[SourceTitle "playchess.com"]
[Source "ChessBase"]
[SourceQuality "1"]
[TimeControl "5400+30"]

1. e4 {[%emt 0:00:00]} c5 {[%emt 0:00:23]} 2. Nf3 {[%emt 0:00:05]} d6 {[%emt 0:00:22]} 3. d4 {[%emt 0:00:03]} cxd4 {[%emt 0:00:17]} 4. Nxd4 {[%emt 0:00:05]} Nf6 {[%emt 0:00:11]} 5. Nc3 {[%emt 0:00:05]} a6 {[%emt 0:00:13]} 6. Be3 {[%emt 0:00:07]} Ng4 {[%emt 0:02:07]} 7. Bc1 {[%emt 0:00:51]} Nf6 {[%emt 0:00:14]} 8. Be3 {[%emt 0:01:36]} e5 {[%emt 0:00:11]} 9. Nb3 {[%emt 0:00:05]} Be6 {[%emt 0:00:08]} 10. Be2 {[%emt 0:00:11]} Be7 {[%emt 0:02:01]} 11. Qd2 {[%emt 0:01:36]} O-O {[%emt 0:02:18]} 12. O-O-O {[%emt 0:03:17]} b5 {[%emt 0:03:06]} 13. a3 {[%emt 0:00:29]} Nbd7 {[%emt 0:03:47]} 14. g4 {[%emt 0:00:16]} Nxg4 {[%emt 0:08:15]} 15. Bxg4 {[%emt 0:06:12]} Bxg4 {[%emt 0:00:06]} 16. Rde1 {[%emt 0:00:43]} Nf6 {[%emt 0:03:30]} 17. Rhg1 {[%emt 0:00:22]} Kh8 {[%emt 0:01:15]} 18. Rg3 {[%emt 0:00:20]} Rc8 {[%emt 0:03:09]} 19. f3 {[%emt 0:01:26]} Be6 {[%emt 0:02:18]} 20. Reg1 {[%emt 0:00:21]} Rg8 {[%emt 0:00:37]} 21. Rd1 {[%emt 0:01:48]} Qc7 {[%emt 0:01:56]} 22. Kb1 {[%emt 0:00:36]} d5 {[%emt 0:04:47]} 23. exd5 {[%emt 0:01:19]} Nxd5 {[%emt 0:00:26]} 24. Nxd5 {[%emt 0:00:16]} Bxd5 {[%emt 0:00:02]} 25. Qxd5 {[%emt 0:03:13]} Rgd8 {[%emt 0:00:33]} 26. Qxf7 {[%emt 0:03:43]} Rxd1+ {[%emt 0:00:05]} 27. Ka2 {[%emt 0:00:02]} Bf6 {[%emt 0:00:16]} 28. Qxc7 {[%emt 0:00:43]} Rxc7 {[%emt 0:00:05]} 29. c3 {[%emt 0:00:19]} Re1 {[%emt 0:01:06]} 30. f4 {[%emt 0:00:54]} h6 {[%emt 0:01:43]} 31. fxe5 {[%emt 0:02:06]} Bxe5 {[%emt 0:00:05]} 32. Rf3 {[%emt 0:00:01]} Re2 {[%emt 0:00:59]} 33. Nd4 {[%emt 0:00:35]} Rxh2 {[%emt 0:00:30]} 34. Kb3 {[%emt 0:00:10]} Bxd4 {[%emt 0:01:24]} 35. Bxd4 {[%emt 0:00:06]} Rg2 {[%emt 0:00:19]} 36. Re3 {[%emt 0:00:36]} Kh7 {[%emt 0:00:19]} 37. Re6 {[%emt 0:00:04]} Rg6 {[%emt 0:00:04]} 38. Re5 {[%emt 0:00:04]} Rgc6 {[%emt 0:02:30]} 39. a4 {[%emt 0:02:12]} bxa4+ {[%emt 0:01:10]} 40. Kxa4 {[%emt 0:00:01]} g5 {[%emt 0:00:37]} 41. b4 {[%emt 0:00:32]} g4 {[%emt 0:02:15]} 42. Ka5 {[%emt 0:00:05]} Kg6 {[%emt 0:03:14]} 43. Re8 {[%emt 0:00:09]} Rf7 {[%emt 0:03:19]} 44. Rg8+ {[%emt 0:02:17]} Kh5 {[%emt 0:02:34]} 45. Bc5 {[%emt 0:00:29]} Rf5 {[%emt 0:00:14]} 46. c4 {[%emt 0:00:12]} Rcxc5+ {[%emt 0:02:26]} 47. bxc5 {[%emt 0:00:02]} Rxc5+ {[%emt 0:00:04]} 48. Kb4 {[%emt 0:00:04]} Rg5 {[%emt 0:00:04]} 49. Rxg5+ {[%emt 0:01:36]} hxg5 {[%emt 0:00:12]} 50. c5 {[%emt 0:00:14]} g3 {[%emt 0:00:03]} 51. c6 {[%emt 0:00:07]} g2 {[%emt 0:00:04]} 52. c7 {[%emt 0:00:11]} g1=Q {[%emt 0:00:04]} 53. c8=Q {[%emt 0:00:04]} Qg4+ {[%emt 0:00:07]} 0-1

[Event "1st Archibald 2019"]
[Site "Sochi"]
[Date "2019.05.12"]
[Round "1.17"]
[White "Lugovskoy, Maxim"]
[Black "Ufimtsev, Egor"]
[Result "1-0"]
[ECO "B22"]
[WhiteElo "2445"]
[BlackElo "2101"]
[Annotator "NA"]
[PlyCount "87"]
[EventDate "2019.05.12"]
[EventType "swiss"]
[EventCountry "RUS"]
[SourceTitle "playchess.com"]
[Source "ChessBase"]
[SourceQuality "1"]
[TimeControl "5400+30"]

{[%evp 13,84,17,47,40,62,20,32767,32767,18,9,25,4,41,-12,0,-16,-10,-31,70,0,26,8,58,64,47,32767,32767,57,79,69,78,78,79,79,96,63,66,78,32767,82,32767,32767,32767,32767,32767,70,66,54,58,32,35,32767,32767,32767,32767,32767,32767,32767,32767,32767,32767,32767,32767,32767,32767,32767,32767,32767,32767,32767,32767,32767,0]} 1. e4 {[%emt 0:00:00]} c5 {[%emt 0:00:15]} 2. Nf3 {[%emt 0:00:23]} e6 {[%emt 0:00:06]} 3. c3 {[%emt 0:00:28]} Nf6 {[%emt 0:00:39]} 4. e5 {[%emt 0:00:10]} Nd5 {[%emt 0:00:04]} 5. d4 {[%emt 0:00:06]} cxd4 {[%emt 0:00:04]} 6. cxd4 {[%emt 0:00:06]} d6 {[%emt 0:00:23]} 7. Bc4 {[%emt 0:00:12]} Nb6 {[%emt 0:01:32]} 8. Bd3 {[%emt 0:00:24]} Nc6 {[%emt 0:00:03]} 9. O-O {[%emt 0:00:19]} Nb4 {[%emt 0:00:40]} 10. Nc3 {[%emt 0:01:01] B22: Sicilian: 2 c3} (10. Bg5 Be7 11. Bxe7 Qxe7 12. Nc3 dxe5 13. dxe5 Nxd3 14. Qxd3 Bd7 15. Ne4 O-O 16. Nd4 Rad8 17. Rad1 Bc6 18. Nxc6 bxc6 {½-½ (34) Liang,A (2590)-Caruana,F (2828) Saint Louis 2019}) 10... Nxd3 {[%emt 0:09:20]} 11. Qxd3 {[%emt 0:02:07]} Be7 {[%emt 0:00:00]} 12. exd6 {[%emt 0:01:24]} Bxd6 {[%emt 0:00:41]} 13. Ne4 {[%emt 0:00:52]} Be7 {[%emt 0:02:52]} 14. Rd1 {[%emt 0:08:18]} Nd5 $146 {[%emt 0:11:21]} ({Predecessor:} 14... O-O 15. b3 Nd5 16. Bb2 b6 17. Rac1 Bb7 {½-½ (82) Postanogov,D (1961)-Ufimtsev,E (2145) St Petersburg 2018}) 15. Bd2 {[%emt 0:03:20]} Nf6 {[%emt 0:04:20] [#]} (15... f6 $15) 16. Rac1 {[%emt 0:02:12]} (16. Nxf6+ $1 $16 Bxf6 17. Bb4) 16... O-O {[%emt 0:03:16]} 17. Ne5 {[%emt 0:04:36]} Bd7 {[%emt 0:01:40]} 18. Nxf6+ {[%emt 0:10:04]} ({But not} 18. Nxd7 Qxd7 19. h3 Rfd8 $11) 18... Bxf6 {[%emt 0:01:05]} 19. Qf3 {[%emt 0:00:09]} Bc6 {[%emt 0:10:18]} 20. Nxc6 {[%emt 0:00:30]} bxc6 {[%emt 0:00:03]} 21. Bb4 {[%emt 0:01:23]} Re8 {[%emt 0:06:20]} 22. Rxc6 {[%emt 0:00:12]} Rb8 {[%emt 0:02:47]} 23. Bc3 {[%emt 0:00:29]} Qd7 {[%emt 0:02:55]} 24. g3 {[%emt 0:02:01]} Rb5 {[%emt 0:03:48]} 25. Rc5 {[%emt 0:00:38]} h6 {[%emt 0:01:10]} 26. Qc6 {[%emt 0:00:53]} Qxc6 {[%emt 0:00:28]} 27. Rxc6 {[%emt 0:00:02]} Rd8 {[%emt 0:01:02]} 28. Rc7 {[%emt 0:01:26]} Rbd5 {[%emt 0:00:51]} 29. Rc1 {[%emt 0:03:04]} (29. Rxa7 $18 Bxd4 30. Rxd4 Rxd4 31. Bxd4 Rxd4 32. a3) 29... Ra8 {[%emt 0:14:24]} 30. Rc4 {[%emt 0:05:50]} Rad8 {[%emt 0:00:16]} 31. Ra4 {[%emt 0:01:01]} R8d7 {[%emt 0:00:35]} 32. b3 {[%emt 0:02:27]} g5 {[%emt 0:04:14]} 33. Kf1 {[%emt 0:02:41]} Bxd4 {[%emt 0:00:52]} 34. Bxd4 {[%emt 0:00:20]} Rxd4 {[%emt 0:00:01]} 35. Rxd4 {[%emt 0:00:11]} Rxd4 {[%emt 0:00:02]} 36. Rc7 {[%emt 0:00:15]} a5 {[%emt 0:00:05]} 37. Rc5 {[%emt 0:02:59]} a4 {[%emt 0:00:05]} 38. Rc4 {[%emt 0:00:18]} Rxc4 {[%emt 0:13:05]} 39. bxc4 {[%emt 0:00:06]} Kf8 {[%emt 0:00:03]} 40. Ke2 {[%emt 0:00:07]} Ke7 {[%emt 0:00:01]} 41. c5 {[%emt 0:00:21]} Kd7 {[%emt 0:00:01]} 42. Kd3 {[%emt 0:00:02]} Kc6 $11 {[%emt 0:00:03]} 43. Kc4 {[%emt 0:00:05]} e5 {[%emt 0:01:51]} 44. g4 {[%emt 0:00:19]} 1-0

[Event "1st Archibald 2019"]
[Site "Sochi"]
[Date "2019.05.12"]
[Round "1.18"]
[White "Khudyakov, Stanislav"]
[Black "Solozhenkin, Evgeniy"]
[Result "1/2-1/2"]
[ECO "B21"]
[WhiteElo "2086"]
[BlackElo "2441"]
[Annotator "NA"]
[PlyCount "124"]
[EventDate "2019.05.12"]
[EventType "swiss"]
[EventCountry "RUS"]
[SourceTitle "playchess.com"]
[Source "ChessBase"]
[SourceQuality "1"]
[TimeControl "5400+30"]

1. e4 {[%emt 0:00:00]} c5 {[%emt 0:00:07]} 2. d4 {[%emt 0:00:06]} cxd4 {[%emt 0:00:06]} 3. c3 {[%emt 0:00:07]} dxc3 {[%emt 0:00:07]} 4. Nxc3 {[%emt 0:00:05]} Nc6 {[%emt 0:00:35]} 5. Nf3 {[%emt 0:00:06]} e6 {[%emt 0:00:17]} 6. Bc4 {[%emt 0:00:08]} Qc7 {[%emt 0:00:35]} 7. O-O {[%emt 0:02:00]} Nf6 {[%emt 0:00:20]} 8. Nb5 {[%emt 0:00:22]} Qb8 {[%emt 0:00:37]} 9. e5 {[%emt 0:00:07] B21: Sicilian: 2 f4 and Morra Gambit} Ng4 {[%emt 0:04:06]} (9... a6 10. exf6 axb5 11. fxg7 Bxg7 12. Bxb5 O-O 13. a4 d5 14. Be3 Qc7 15. Qd2 Qa5 16. Qc1 Bd7 {½-½ (32) Poweronoff (2501)-Rajlich,V (2554) playchess.com INT 2006}) 10. Bf4 {[%emt 0:00:06]} a6 $1 {[%emt 0:00:29]} 11. Nd6+ {[%emt 0:01:44]} Bxd6 $1 {[%emt 0:00:06]} 12. exd6 {[%emt 0:00:04]} O-O {[%emt 0:00:33]} 13. Re1 $146 {[%emt 0:12:05]} ({Predecessor:} 13. a3 b5 14. Ba2 Bb7 15. Rc1 Qd8 16. h3 Qf6 {1-0 (52) Probola,R (2250)-Flitsch,G (2278) ICCF email 2016}) 13... b5 {[%emt 0:06:17]} 14. Bb3 {[%emt 0:03:04]} Qb6 {[%emt 0:13:05]} 15. Qe2 {[%emt 0:02:53]} Bb7 {[%emt 0:02:10]} 16. h3 {[%emt 0:02:10]} Nf6 {[%emt 0:00:07]} 17. Be3 $1 {[%emt 0:03:57]} Qa5 {[%emt 0:04:14]} 18. Bg5 {[%emt 0:10:46]} Qb4 {[%emt 0:11:16]} 19. Rad1 {[%emt 0:03:22]} Nd5 {[%emt 0:14:41]} 20. Bxd5 {[%emt 0:12:28]} exd5 {[%emt 0:00:05]} 21. Be7 {[%emt 0:07:31]} Rfe8 {[%emt 0:00:54]} 22. a3 {[%emt 0:00:20]} Qf4 $11 {[%emt 0:03:49]} 23. Qd3 {[%emt 0:11:18]} Nxe7 {[%emt 0:01:49]} 24. dxe7 {[%emt 0:00:06]} Rac8 {[%emt 0:00:37]} 25. Nd4 {[%emt 0:01:14]} g6 {[%emt 0:05:36]} 26. Re3 {[%emt 0:01:43]} Qf6 {[%emt 0:03:27]} 27. Rde1 {[%emt 0:05:52]} Rc4 {[%emt 0:00:25]} 28. Nb3 {[%emt 0:01:45]} Bc6 {[%emt 0:04:42]} 29. Nd2 {[%emt 0:03:39]} Rd4 {[%emt 0:00:53]} 30. Qc2 {[%emt 0:02:26]} Rf4 {[%emt 0:00:29]} 31. R3e2 {[%emt 0:01:32]} Qd6 {[%emt 0:04:57]} 32. Nb3 {[%emt 0:03:20]} Re4 {[%emt 0:00:57]} 33. f3 {[%emt 0:02:28]} R4xe7 {[%emt 0:00:43]} 34. Rxe7 {[%emt 0:00:06]} Rxe7 {[%emt 0:00:03]} 35. Rxe7 {[%emt 0:00:07]} Qxe7 {[%emt 0:00:03]} 36. Qd2 {[%emt 0:00:17]} d4 {[%emt 0:09:42]} 37. Nxd4 {[%emt 0:00:07]} Qc5 {[%emt 0:00:26]} 38. b4 {[%emt 0:00:21]} Qc4 {[%emt 0:00:22]} 39. Qe3 {[%emt 0:00:09]} d6 {[%emt 0:00:19]} 40. Qd2 {[%emt 0:02:31]} Bd5 {[%emt 0:01:01]} 41. Qe3 {[%emt 0:00:38]} Kg7 {[%emt 0:01:10]} 42. Qd2 {[%emt 0:00:25]} f6 {[%emt 0:03:12]} 43. Qe3 {[%emt 0:00:58]} Bf7 {[%emt 0:00:11]} 44. Qd2 {[%emt 0:00:13]} Qd5 {[%emt 0:00:55]} 45. Kf2 {[%emt 0:02:09]} h5 {[%emt 0:00:32]} 46. Kg1 {[%emt 0:02:08]} Qe5 {[%emt 0:00:22]} 47. Qc3 {[%emt 0:01:00]} h4 {[%emt 0:00:16]} 48. Qd2 {[%emt 0:00:13]} Bc4 {[%emt 0:00:19]} 49. Qc3 {[%emt 0:00:45]} f5 {[%emt 0:01:37]} 50. Qd2 {[%emt 0:00:19]} f4 {[%emt 0:01:07]} 51. Kf2 {[%emt 0:00:17]} Kf6 {[%emt 0:00:35]} 52. Nc6 {[%emt 0:01:24]} Qe3+ {[%emt 0:03:08]} 53. Qxe3 {[%emt 0:00:05]} fxe3+ {[%emt 0:00:02]} 54. Kxe3 {[%emt 0:00:05]} Bd5 {[%emt 0:00:09]} 55. Nd4 {[%emt 0:00:43]} g5 {[%emt 0:00:26]} 56. Ne2 {[%emt 0:02:16]} Ke5 {[%emt 0:00:38]} 57. Nd4 {[%emt 0:01:35]} Bb7 {[%emt 0:00:58]} 58. Ne2 {[%emt 0:00:13]} Bc6 {[%emt 0:00:29]} 59. Nc3 {[%emt 0:00:40]} Bb7 {[%emt 0:00:35]} 60. Ne2 {[%emt 0:00:05]} Bc6 {[%emt 0:00:53]} 61. Nc3 {[%emt 0:00:05]} Bb7 {[%emt 0:00:23]} 62. Ne2 {[%emt 0:00:06]} Bc6 {[%emt 0:00:28]} 1/2-1/2

[Event "1st Archibald 2019"]
[Site "Sochi"]
[Date "2019.05.12"]
[Round "1.19"]
[White "Oganian, Miran"]
[Black "Yakimenko, Alexander A."]
[Result "1-0"]
[ECO "A62"]
[WhiteElo "2415"]
[BlackElo "2059"]
[Annotator "NA"]
[PlyCount "137"]
[EventDate "2019.05.12"]
[EventType "swiss"]
[EventCountry "RUS"]
[SourceTitle "playchess.com"]
[Source "ChessBase"]
[SourceQuality "1"]
[TimeControl "5400+30"]

1. d4 {[%emt 0:00:00]} e6 {[%emt 0:00:04]} 2. c4 {[%emt 0:00:28]} Nf6 {[%emt 0:00:11]} 3. g3 {[%emt 0:00:18]} c5 {[%emt 0:01:03]} 4. d5 {[%emt 0:00:39]} exd5 {[%emt 0:00:09]} 5. cxd5 {[%emt 0:00:05]} d6 {[%emt 0:00:06]} 6. Nc3 {[%emt 0:00:05]} g6 {[%emt 0:00:21]} 7. Nf3 {[%emt 0:00:08]} Bg7 {[%emt 0:00:09]} 8. Bg2 {[%emt 0:00:05]} O-O {[%emt 0:00:07]} 9. O-O {[%emt 0:00:06]} a6 {[%emt 0:00:39]} 10. a4 {[%emt 0:00:07]} Re8 {[%emt 0:02:13]} 11. Bf4 {[%emt 0:00:10]} Nh5 {[%emt 0:00:45]} 12. Bg5 {[%emt 0:00:54] A62: Modern Benoni: Fianchetto Variation without early ...Nbd7} Bf6 {[%emt 0:01:18] [#]} (12... Qc7 13. Qd2 Nd7 14. Rfc1 b6 15. Rab1 Ndf6 16. Nh4 Ng4 17. h3 Ne5 18. b3 f6 19. Be3 f5 {0-1 (45) Jumabayev,R (2611)-Zhigalko,S (2671) Doha 2016}) 13. Bc1 {[%emt 0:07:25]} (13. Bxf6 $1 $16 Nxf6 14. Nd2) 13... Bg7 $146 {[%emt 0:08:44]} ({Predecessor:} 13... Nd7 14. Nd2 Ne5 15. h3 Bg7 16. f4 Nxg3 17. fxe5 Bxe5 18. Nf3 Nxf1 19. Qxf1 Bg7 {0-1 (36) Guramishvili,S (2370)-Majdan,J (2391) Germany 2015}) 14. Nd2 {[%emt 0:05:40]} Nd7 {[%emt 0:02:02]} 15. h3 {[%emt 0:01:21]} Rb8 {[%emt 0:01:37]} 16. a5 {[%emt 0:03:30]} b5 {[%emt 0:01:34]} 17. axb6 $1 {[%emt 0:00:08]} Nxb6 {[%emt 0:00:09]} 18. e4 {[%emt 0:00:23]} Bd7 {[%emt 0:15:16]} 19. Re1 {[%emt 0:07:57]} Qc8 {[%emt 0:02:32]} 20. Kh2 {[%emt 0:02:09]} c4 {[%emt 0:22:29]} (20... Bd4 $11 {keeps the balance.}) 21. Nf3 {[%emt 0:03:22]} Qc5 {[%emt 0:06:38]} (21... Bb5 $16) 22. Be3 {[%emt 0:04:45]} Qb4 {[%emt 0:01:40]} 23. Qc2 {[%emt 0:02:37]} a5 {[%emt 0:06:12]} 24. Nd4 {[%emt 0:02:39]} Rbc8 {[%emt 0:03:51]} (24... Nc8 $142 25. Nce2 Nf6) 25. Red1 {[%emt 0:03:53]} h6 {[%emt 0:03:45]} 26. Ra3 {[%emt 0:01:38]} Red8 {[%emt 0:07:55]} 27. Na2 {[%emt 0:00:32]} Qc5 {[%emt 0:08:00]} 28. Nc6 {[%emt 0:04:17]} Qb5 $18 {[%emt 0:01:19]} (28... Rxc6 $142 29. Bxc5 Rxc5) 29. Nxd8 {[%emt 0:00:21]} Rxd8 {[%emt 0:00:07]} 30. Nc3 {[%emt 0:01:36]} Qb4 {[%emt 0:00:22]} 31. Bd4 {[%emt 0:00:10]} Bxd4 {[%emt 0:00:23]} 32. Rxd4 {[%emt 0:00:06]} Nf6 {[%emt 0:01:34]} 33. Qd2 {[%emt 0:00:18]} Kg7 {[%emt 0:00:15]} 34. Na2 {[%emt 0:01:00]} Qxd2 {[%emt 0:00:34]} 35. Rxd2 {[%emt 0:00:05]} a4 {[%emt 0:00:10]} 36. Nc3 {[%emt 0:00:12]} Ne8 {[%emt 0:00:24]} 37. f4 {[%emt 0:00:57]} f6 {[%emt 0:00:17]} 38. h4 {[%emt 0:02:09]} Nc7 {[%emt 0:00:15]} 39. Bh3 {[%emt 0:00:17]} Be8 {[%emt 0:00:05]} 40. Kg2 {[%emt 0:00:20]} Na6 {[%emt 0:01:17]} 41. Kf3 {[%emt 0:00:33]} Nc5 {[%emt 0:00:13]} 42. Bf1 {[%emt 0:00:25]} Bd7 {[%emt 0:01:03]} 43. g4 {[%emt 0:00:45]} Rf8 {[%emt 0:01:13]} 44. Rg2 {[%emt 0:00:22]} g5 {[%emt 0:00:52]} 45. Nb1 {[%emt 0:02:41]} Nb3 {[%emt 0:00:50]} 46. Nd2 {[%emt 0:00:50]} Nd4+ {[%emt 0:01:15]} 47. Kg3 {[%emt 0:00:03]} Rc8 {[%emt 0:00:33]} 48. Rc3 {[%emt 0:02:15]} Nb5 {[%emt 0:00:30]} 49. Nxc4 {[%emt 0:01:07]} Nxc3 {[%emt 0:00:14]} 50. Nxb6 {[%emt 0:00:04]} Nxe4+ {[%emt 0:00:57]} 51. Kf3 {[%emt 0:00:05]} Nc5 {[%emt 0:00:32]} 52. Nxc8 {[%emt 0:00:12]} Bxc8 {[%emt 0:00:01]} 53. Bb5 {[%emt 0:00:33]} gxh4 {[%emt 0:00:57]} 54. f5 {[%emt 0:01:58]} Bb7 {[%emt 0:00:27]} 55. Bc6 {[%emt 0:00:13]} Ba6 {[%emt 0:00:07]} 56. Rh2 {[%emt 0:01:03]} Bf1 {[%emt 0:00:59]} 57. Rh1 {[%emt 0:00:38]} Bd3 {[%emt 0:00:18]} 58. Rxh4 {[%emt 0:00:21]} Be4+ {[%emt 0:00:14]} 59. Ke3 {[%emt 0:00:10]} Bc2 {[%emt 0:00:28]} 60. Kd4 {[%emt 0:00:35]} Bd1 {[%emt 0:00:12]} 61. Be8 {[%emt 0:00:23]} Kf8 {[%emt 0:00:15]} 62. Bh5 {[%emt 0:01:00]} Nd7 {[%emt 0:01:32]} 63. Rh1 {[%emt 0:00:17]} Bf3 {[%emt 0:00:33]} 64. Rf1 {[%emt 0:01:10]} Be2 {[%emt 0:00:30]} 65. Re1 {[%emt 0:00:09]} Bb5 {[%emt 0:00:15]} 66. Re6 {[%emt 0:00:48]} Kg7 {[%emt 0:00:38]} 67. Be8 {[%emt 0:00:30]} Kf8 {[%emt 0:00:20]} 68. Bxd7 {[%emt 0:00:07]} Bxd7 {[%emt 0:00:02]} 69. Rxf6+ {[%emt 0:00:11]} 1-0

[Event "1st Archibald 2019"]
[Site "Sochi"]
[Date "2019.05.12"]
[Round "1.20"]
[White "Kiriushin, Vladimir"]
[Black "Kovalchuk, Alexey"]
[Result "0-1"]
[ECO "B92"]
[WhiteElo "2041"]
[BlackElo "2410"]
[Annotator "NA"]
[PlyCount "64"]
[EventDate "2019.05.12"]
[EventType "swiss"]
[EventCountry "RUS"]
[SourceTitle "playchess.com"]
[Source "ChessBase"]
[SourceQuality "1"]
[TimeControl "5400+30"]

{[%evp 12,45,11,32767,32767,0,0,0,16,-20,14,-17,0,-20,-20,-47,32767,-93,-78,-75,-75,-91,-76,-89,-73,-84,-78,-123,-107,-130,32767,32767,32767,32767,32767,-212]} 1. e4 {[%emt 0:00:00]} c5 {[%emt 0:00:37]} 2. Nf3 {[%emt 0:00:03]} d6 {[%emt 0:00:11]} 3. d4 {[%emt 0:00:05]} cxd4 {[%emt 0:00:06]} 4. Nxd4 {[%emt 0:00:08]} Nf6 {[%emt 0:00:08]} 5. Nc3 {[%emt 0:00:10]} a6 {[%emt 0:01:19]} 6. Be2 {[%emt 0:00:19]} e5 {[%emt 0:00:07]} 7. Nb3 {[%emt 0:03:33]} Be7 {[%emt 0:00:44]} 8. a4 {[%emt 0:01:06]} O-O {[%emt 0:00:57]} 9. O-O {[%emt 0:00:22]} Be6 {[%emt 0:11:30]} 10. Be3 {[%emt 0:00:37]} Nbd7 {[%emt 0:00:28]} 11. Kh1 {[%emt 0:12:29] B92: Sicilian Najdorf: 6 Be2} (11. Qd2 Rc8 12. a5 Re8 13. Bf3 h6 14. Nc1 Nh7 15. g3 Bg5 16. Nd3 Nb8 17. Bxg5 Qxg5 18. Qxg5 hxg5 19. Rfd1 Nc6 20. Ne2 g4 {0-1 (39) Zherebukh,Y (2633)-Xiong,J (2640) Saint Louis 2018}) 11... Rc8 {[%emt 0:01:02]} 12. f3 {[%emt 0:04:55]} Qc7 {[%emt 0:13:59]} 13. Rc1 {[%emt 0:03:43]} Nb6 {[%emt 0:05:17]} 14. Qe1 $146 {[%emt 0:21:30]} ({Predecessor:} 14. f4 Nc4 15. Bxc4 Bxc4 16. Rf2 b5 17. axb5 axb5 18. Nd2 Qb7 19. Qf3 b4 {0-1 (45) Presado,C (1965)-Pereira,R (2160) Lisbon 2004}) 14... Nc4 {[%emt 0:05:36]} 15. Bxc4 $1 {[%emt 0:01:03]} Bxc4 {[%emt 0:00:23]} 16. Rf2 {[%emt 0:00:43]} d5 {[%emt 0:00:43]} 17. exd5 {[%emt 0:01:12]} Nxd5 {[%emt 0:00:13]} 18. Nxd5 {[%emt 0:00:26]} Bxd5 {[%emt 0:00:01]} 19. a5 {[%emt 0:07:34]} Qc6 {[%emt 0:01:46]} 20. Kg1 {[%emt 0:00:29]} Bh4 {[%emt 0:04:11]} 21. g3 {[%emt 0:00:01]} Bf6 {[%emt 0:00:55]} 22. Nc5 {[%emt 0:07:37]} Bxf3 {[%emt 0:02:12]} 23. b4 $19 {[%emt 0:02:03]} e4 {[%emt 0:12:11]} 24. c3 {[%emt 0:01:55]} Be5 {[%emt 0:04:17]} 25. Rd2 {[%emt 0:05:18]} Rfd8 {[%emt 0:00:48]} 26. Nb3 {[%emt 0:04:21]} Qg6 {[%emt 0:05:33]} 27. Nc5 {[%emt 0:07:37]} f5 {[%emt 0:06:44]} 28. Nxb7 {[%emt 0:03:45]} Re8 {[%emt 0:05:02]} 29. Kf1 {[%emt 0:03:24]} f4 {[%emt 0:06:17]} 30. Bxf4 {[%emt 0:02:20]} Bxf4 {[%emt 0:00:12]} 31. gxf4 {[%emt 0:01:33]} e3 {[%emt 0:00:10]} 32. Re2 {[%emt 0:01:01]} Bxb7 {[%emt 0:00:13]} 0-1

[Event "1st Archibald 2019"]
[Site "Sochi"]
[Date "2019.05.12"]
[Round "1.21"]
[White "Guseva, Marina"]
[Black "Osipov, Aleksandr"]
[Result "0-1"]
[ECO "E15"]
[WhiteElo "2402"]
[BlackElo "2024"]
[Annotator "NA"]
[PlyCount "78"]
[EventDate "2019.05.12"]
[EventType "swiss"]
[EventCountry "RUS"]
[SourceTitle "playchess.com"]
[Source "ChessBase"]
[SourceQuality "1"]
[TimeControl "5400+30"]

{[%evp 8,58,12,5,14,19,17,22,22,4,32767,32767,32767,21,27,25,39,8,30,12,14,18,12,0,15,0,0,-31,-3,-37,0,-29,-30,-75,-66,-54,-67,-87,-74,-125,-71,-105,-82,32767,32767,-120,32767,32767,32767,-129,-100,-83,-58]} 1. d4 {[%emt 0:00:00]} Nf6 {[%emt 0:00:05]} 2. c4 {[%emt 0:00:11]} e6 {[%emt 0:00:06]} 3. Nf3 {[%emt 0:01:00]} b6 {[%emt 0:00:12]} 4. g3 {[%emt 0:01:03]} Ba6 {[%emt 0:00:34]} 5. Qa4 {[%emt 0:00:08]} Bb7 {[%emt 0:00:08]} 6. Bg2 {[%emt 0:00:04]} c5 {[%emt 0:00:08]} 7. dxc5 {[%emt 0:00:19]} Bxc5 {[%emt 0:00:18]} 8. O-O {[%emt 0:00:05]} O-O {[%emt 0:01:34]} 9. Nc3 {[%emt 0:00:37]} ({Predecessor:} 9. Bf4 a6 {½-½ (19) Kourousis,E (2420)-Vesselovsky,S (2339) Czech Republic 2015}) 9... a6 {[%emt 0:00:55]} 10. Bf4 {[%emt 0:14:47] E15: Queen's Indian: 4 g3 sidelines, 4 g3 Ba6 and 4 g3 Bb7 early deviations} Be7 {[%emt 0:02:22]} 11. Rfd1 {[%emt 0:01:51]} d6 {[%emt 0:00:17]} 12. Rd2 $146 {[%emt 0:01:14]} (12. Qa3 Ne8 13. b4 Nd7 14. Qb3 Qb8 15. Rd2 h6 16. Rad1 Qa7 17. Qa4 Ndf6 18. Nd4 {1-0 (66) Mamedyarov,S (2752)-Karjakin,S (2732) Baku 2008}) 12... Qc7 {[%emt 0:03:57]} 13. Rad1 {[%emt 0:14:46]} Rd8 {[%emt 0:00:13]} 14. Qc2 {[%emt 0:10:33]} h6 {[%emt 0:05:49]} 15. b3 {[%emt 0:04:17]} Nh5 {[%emt 0:03:35]} (15... b5 $5) 16. Be3 {[%emt 0:00:45]} Nf6 {[%emt 0:00:48]} 17. Ne1 {[%emt 0:06:52]} Bxg2 {[%emt 0:00:48]} 18. Kxg2 {[%emt 0:00:26]} Nbd7 {[%emt 0:00:19]} 19. f3 {[%emt 0:00:13]} Rac8 {[%emt 0:04:15]} 20. Nb1 {[%emt 0:06:28]} Qb7 {[%emt 0:01:37]} 21. Qb2 {[%emt 0:00:36]} b5 {[%emt 0:04:35]} 22. cxb5 {[%emt 0:00:12]} axb5 {[%emt 0:00:07]} 23. Bd4 {[%emt 0:00:41]} Rc6 {[%emt 0:05:31]} ({Black should try} 23... e5 24. Bf2 d5) 24. Nd3 {[%emt 0:00:22]} Rdc8 {[%emt 0:00:59]} 25. a3 {[%emt 0:04:58]} R6c7 {[%emt 0:02:13]} 26. Nb4 $1 $11 {[%emt 0:00:27]} Bf8 {[%emt 0:03:59]} 27. Kg1 {[%emt 0:00:50]} Be7 {[%emt 0:02:47]} 28. Rc2 {[%emt 0:04:54]} Rxc2 {[%emt 0:02:12]} 29. Nxc2 {[%emt 0:00:03]} h5 $15 {[%emt 0:03:17]} 30. Nb4 {[%emt 0:00:41]} h4 {[%emt 0:00:10]} 31. Rc1 {[%emt 0:03:24]} Nc5 {[%emt 0:06:08]} 32. Nd2 {[%emt 0:02:40]} e5 {[%emt 0:03:09]} 33. Bf2 {[%emt 0:02:41]} e4 {[%emt 0:00:50]} 34. Nc2 {[%emt 0:04:09]} Re8 {[%emt 0:01:21]} 35. b4 {[%emt 0:01:19]} Ne6 {[%emt 0:00:13]} 36. Ne3 {[%emt 0:00:14]} Ng5 {[%emt 0:02:20]} 37. f4 {[%emt 0:01:54]} Nh3+ {[%emt 0:00:44]} 38. Kg2 {[%emt 0:00:05]} Nxf2 {[%emt 0:00:03]} 39. Kxf2 {[%emt 0:00:03]} Qa7 {[%emt 0:00:39]} 0-1